fUSD/lending_fUSD_20240808
["ID","MTS","AMOUNT","RATE_DAILY","PERIOD"]
[334454326,1723113056712,-181.16028,0.00016986,2]
[334454327,1723113056721,-151.0,0.00016986,2]
[334454328,1723113056731,-195.545586,0.00016986,2]
[334454329,1723113056740,-167.474562,0.00016986,2]
[334454330,1723113056750,-167.474562,0.00016986,2]
[334454331,1723113056759,-151.0,0.00016986,2]
[334454332,1723113056769,-699.611384,0.00016986,2]
[334454333,1723113056779,-699.611384,0.00016986,2]
[334454334,1723113056788,-151.0,0.00016986,2]
[334454335,1723113056798,-553.127259,0.00016986,2]
[334454336,1723113056807,-553.127259,0.00016986,2]
[334454337,1723113056817,-834.453917,0.00016986,2]
[334454338,1723113056826,-151.0,0.00016986,2]
[334454339,1723113056836,-834.453917,0.00016986,2]
[334454340,1723113056845,-151.0,0.00016986,2]
[334454341,1723113056855,-274.503157,0.00016986,2]
[334454342,1723113056864,-274.503157,0.00016986,2]
[334454343,1723113056873,-1238.80122,0.00016986,2]
[334454344,1723113056883,-1238.80122,0.00016986,2]
[334454345,1723113056893,-650.0,0.00017,2]
[334454346,1723113056902,-577.005933,0.00017122,2]
[334454347,1723113056911,-577.005933,0.00017122,2]
[334454348,1723113056921,-157.349216,0.00017122,2]
[334454349,1723113056930,-157.349216,0.00017122,2]
[334454350,1723113056943,-182.595978,0.00017122,2]
[334454351,1723113056952,-182.595978,0.00017122,2]
[334454352,1723113056962,-315.96395426,0.00017122,2]
[334454353,1723113056971,-167.0,0.00017399,2]
[334454354,1723113056981,-902.52,0.000175,7]
[334454355,1723113056990,-201.0,0.0001755,2]
[334454356,1723113057000,-214.01001912,0.00017608,2]
[334454357,1723113057010,-391.51215722,0.0001765,2]
[334454358,1723113057019,-9563.07131764,0.0001765,2]
[334454359,1723113057029,-89953.74,0.000178,2]
[334454360,1723113057038,-151.0,0.000178,2]
[334454361,1723113057047,-151.0,0.000178,2]
[334454362,1723113057057,-398.610803,0.000178,2]
[334454363,1723113057066,-539.840086,0.00017808,2]
[334454364,1723113057075,-539.840086,0.00017808,2]
[334454365,1723113057085,-200.526732,0.00017808,2]
[334454366,1723113057094,-200.526732,0.00017808,2]
[334454367,1723113057105,-187.637964,0.00017808,2]
[334454368,1723113057115,-187.637964,0.00017808,2]
[334454369,1723113057124,-181.16028,0.00017808,2]
[334454370,1723113057134,-151.0,0.00017808,2]
[334454371,1723113057143,-181.16028,0.00017808,2]
[334454372,1723113057154,-151.0,0.00017808,2]
[334454373,1723113057164,-167.474562,0.00017808,2]
[334454374,1723113057174,-167.474562,0.00017808,2]
[334454375,1723113057184,-151.0,0.00017808,2]
[334454376,1723113057197,-699.611384,0.00017808,2]
[334454377,1723113057207,-699.61138,0.00017808,2]
[334454378,1723113057217,-834.453917,0.00017808,2]
[334454379,1723113057228,-151.0,0.00017808,2]
[334454380,1723113057241,-834.453917,0.00017808,2]
[334454381,1723113057251,-151.833328,0.00017808,2]
[334454382,1723113057260,-274.503157,0.00017808,2]
[334454383,1723113057271,-274.503159,0.00017808,2]
[334454384,1723113057281,-577.005933,0.00017808,2]
[334454385,1723113057290,-577.005927,0.00017808,2]
[334454386,1723113057300,-157.349216,0.00017808,2]
[334454387,1723113057311,-157.349218,0.00017808,2]
[334454388,1723113057321,-182.595978,0.00017808,2]
[334454389,1723113057331,-182.595974,0.00017808,2]
[334454390,1723113057341,-7386.23,0.00017808,2]
[334454391,1723113057350,-191.688466,0.0001781,2]
[334454392,1723113057360,-191.688466,0.0001781,2]
[334454393,1723113057370,-1202.029498,0.0001781,2]
[334454394,1723113057379,-1202.029498,0.0001781,2]
[334454395,1723113057388,-151.0,0.0001781,2]
[334454396,1723113057399,-285.037595,0.0001781,2]
[334454397,1723113057408,-197.27853,0.0001781,2]
[334454398,1723113057417,-197.27853,0.0001781,2]
[334454399,1723113057427,-151.0,0.0001781,2]
[334454400,1723113057438,-553.127259,0.0001781,2]
[334454401,1723113057447,-553.12726,0.0001781,2]
[334454402,1723113057456,-1238.80122,0.0001781,2]
[334454403,1723113057466,-1238.801228,0.0001781,2]
[334454404,1723113057475,-286.1665,0.000179,2]
[334454405,1723113057485,-286.16651,0.000179,2]
[334454406,1723113057494,-167.0,0.00017921,2]
[334454407,1723113057504,-308.16874741,0.00018,2]
[334454408,1723113057513,-676.11936882,0.00018,2]
[334454409,1723113057523,-23246.05498063,0.00018,2]
[334454410,1723113057532,-155.21383572,0.00018,2]
[334454411,1723113057542,-1004.76,0.0001822,2]
[334454412,1723113057551,-200.0,0.00018287,2]
[334454413,1723113057560,-200.0,0.00018287,2]
[334454414,1723113057569,-167.0,0.00018444,2]
[334454415,1723113057579,-155.0,0.00018471,2]
[334454416,1723113057588,-2442.6021425,0.000186,2]
[334454417,1723113057598,-315.96395426,0.00018678,2]
[334454418,1723113057607,-1019.4781698,0.00018835,2]
[334454419,1723113057617,-150.55,0.000189,2]
[334454420,1723113057627,-150.55,0.000189,2]
[334454421,1723113057637,-150.55,0.000189,2]
[334454422,1723113057646,-150.55,0.000189,2]
[334454423,1723113057655,-150.55,0.000189,2]
[334454424,1723113057665,-150.55,0.000189,2]
[334454425,1723113057674,-150.55,0.000189,2]
[334454426,1723113057684,-150.55,0.000189,2]
[334454427,1723113057696,-150.55,0.000189,2]
[334454428,1723113057705,-150.55,0.000189,2]
[334454429,1723113057715,-150.55,0.000189,2]
[334454430,1723113057724,-150.55,0.000189,2]
[334454431,1723113057734,-150.55,0.000189,2]
[334454432,1723113057743,-150.55,0.000189,2]
[334454433,1723113057753,-150.55,0.000189,2]
[334454434,1723113057763,-150.55,0.000189,2]
[334454435,1723113057774,-150.55,0.000189,2]
[334454436,1723113057784,-150.55,0.000189,2]
[334454437,1723113057793,-150.55,0.000189,2]
[334454438,1723113057802,-150.55,0.000189,2]
[334454439,1723113057812,-150.55,0.000189,2]
[334454440,1723113057822,-150.55,0.000189,2]
[334454441,1723113057832,-150.55,0.000189,2]
[334454442,1723113057842,-150.55,0.000189,2]
[334454443,1723113057851,-150.55,0.000189,2]
[334454444,1723113057860,-150.55,0.000189,2]
[334454445,1723113057869,-150.55,0.000189,2]
[334454446,1723113057879,-150.55,0.000189,2]
[334454447,1723113057888,-150.55,0.000189,2]
[334454448,1723113057897,-150.55,0.000189,2]
[334454449,1723113057907,-150.55,0.000189,2]
[334454450,1723113057918,-150.55,0.000189,2]
[334454451,1723113057927,-150.55,0.000189,2]
[334454452,1723113057938,-150.55,0.000189,2]
[334454453,1723113057947,-150.55,0.000189,2]
[334454454,1723113057957,-150.55,0.000189,2]
[334454455,1723113057966,-150.55,0.000189,2]
[334454456,1723113057975,-150.55,0.000189,2]
[334454457,1723113057984,-150.55,0.000189,2]
[334454458,1723113057993,-150.55,0.000189,2]
[334454459,1723113058004,-150.55,0.000189,2]
[334454460,1723113058013,-150.55,0.000189,2]
[334454461,1723113058023,-150.55,0.000189,2]
[334454462,1723113058033,-150.55,0.000189,2]
[334454463,1723113058043,-150.55,0.000189,2]
[334454464,1723113058052,-150.55,0.000189,2]
[334454465,1723113058063,-150.55,0.000189,2]
[334454466,1723113058072,-150.55,0.000189,2]
[334454467,1723113058083,-150.55,0.000189,2]
[334454468,1723113058092,-150.55,0.000189,2]
[334454469,1723113058103,-150.55,0.000189,2]
[334454470,1723113058113,-150.55,0.000189,2]
[334454471,1723113058123,-150.55,0.000189,2]
[334454472,1723113058132,-150.55,0.000189,2]
[334454473,1723113058142,-150.55,0.000189,2]
[334454474,1723113058151,-150.55,0.000189,2]
[334454475,1723113058161,-150.55,0.000189,2]
[334454476,1723113058171,-150.55,0.000189,2]
[334454477,1723113058180,-150.55,0.000189,2]
[334454478,1723113058191,-150.55,0.000189,2]
[334454479,1723113058200,-150.55,0.000189,2]
[334454480,1723113058210,-150.55,0.000189,2]
[334454481,1723113058221,-150.55,0.000189,2]
[334454482,1723113058232,-150.55,0.000189,2]
[334454483,1723113058247,-150.55,0.000189,2]
[334454484,1723113058256,-150.0,0.00018947,2]
[334454485,1723113058265,-150.0,0.00018947,2]
[334454486,1723113058275,-1894.0,0.00018947,2]
[334454487,1723113058285,-438.848,0.00018947,2]
[334454488,1723113058295,-1139.0,0.00018947,2]
[334454489,1723113058304,-202.159,0.00018947,2]
[334454490,1723113058316,-1256.0,0.00018947,2]
[334454491,1723113058326,-1924.0,0.00018947,2]
[334454492,1723113058336,-18854.968,0.00018947,2]
[334454493,1723113058345,-619.0,0.00018947,2]
[334454494,1723113058355,-474.69777953,0.00019,2]
[334454495,1723113058364,-700.0,0.00019,2]
[334454496,1723113058374,-201.0,0.000192,2]
[334454497,1723113058383,-500.0,0.00019201,2]
[334454498,1723113058393,-157.15068751,0.00019599,2]
[334454499,1723113058402,-500.0,0.00019687,2]
[334454500,1723113058412,-1223.86407,0.0001983,2]
[334454501,1723113058424,-17831.98779443,0.0002,2]
[334454502,1723113058434,-12819.41414988,0.0002,3]
[334454503,1723113058446,-6292.16901067,0.0002,2]
[334454504,1723113058456,-155.0,0.0002,2]
[334454505,1723113058465,-300.0,0.0002,2]
[334454506,1723113058476,-1273.55265068,0.0002,2]
[334454507,1723113058486,-250.0,0.0002,2]
[334454508,1723113058496,-192.0,0.0002,2]
[334454509,1723113058505,-170.375111,0.0002,2]
[334454510,1723113058515,-152.165558,0.0002,2]
[334454511,1723113058524,-421.538942,0.0002,2]
[334454512,1723113058533,-150.0,0.0002,2]
[334454513,1723113058543,-191.688466,0.0002,2]
[334454514,1723113058552,-191.688466,0.0002,2]
[334454515,1723113058562,-1202.029498,0.0002,2]
[334454516,1723113058571,-1202.02949,0.0002,2]
[334454517,1723113058580,-398.6108,0.0002,2]
[334454518,1723113058590,-229.116179,0.0002,2]
[334454519,1723113058599,-197.27853,0.0002,2]
[334454520,1723113058608,-197.27854,0.0002,2]
[334454521,1723113058617,-539.840086,0.0002,2]
[334454522,1723113058627,-539.840086,0.0002,2]
[334454523,1723113058636,-200.526732,0.0002,2]
[334454524,1723113058645,-200.52674,0.0002,2]
[334454525,1723113058655,-187.637964,0.0002,2]
[334454526,1723113058664,-187.637966,0.0002,2]
[334454527,1723113058674,-181.16028,0.0002,2]
[334454528,1723113058683,-151.0,0.0002,2]
[334454529,1723113058696,-181.160283,0.0002,2]
[334454530,1723113058705,-151.0,0.0002,2]
[334454531,1723113058715,-167.474562,0.0002,2]
[334454532,1723113058724,-167.474552,0.0002,2]
[334454533,1723113058734,-2000.0,0.0002,2]
[334454534,1723113058744,-2000.0,0.0002001,2]
[334454535,1723113058753,-2000.0,0.0002002,2]
[334454536,1723113058763,-3040.193855,0.0002003,2]
[334454537,1723113058772,-174.13,0.00020091,2]
[334454538,1723113058782,-2024.24992124,0.00020222,2]
[334454539,1723113058792,-492.23,0.00020447,2]
[334454540,1723113058801,-500.0,0.00020726,2]
[334454541,1723113058811,-201.0,0.0002086,2]
[334454542,1723113058820,-225.66587792,0.00021,2]
[334454543,1723113058830,-500.0,0.00021066,2]
[334454544,1723113058840,-500.0,0.00021066,2]
[334454545,1723113058849,-1239.0,0.000218,2]
[334454546,1723113058859,-50000.0,0.0002187,4]
[334454547,1723113058868,-200.62,0.00021875,5]
[334454548,1723113058877,-4000.69961483,0.0002188,5]
[334454549,1723113058886,-158.894421,0.00021882,2]
[334454550,1723113058895,-500.0,0.00021888,2]
[334454551,1723113058905,-180.40768265,0.000219,2]
[334454552,1723113058914,-2000.0,0.000219,2]
[334454553,1723113058923,-769.70955523,0.000219,2]
[334454554,1723113058933,-602.88,0.00021918,2]
[334454555,1723113058944,-151.0,0.00021918,2]
[334454556,1723113058953,-454.22,0.00021918,2]
[334454557,1723113058963,-150.0,0.00021918,2]
[334454558,1723113058972,-150.0,0.00021947,2]
[334454559,1723113058981,-1553.448,0.00021947,2]
[334454560,1723113058991,-795.94378338,0.00022,2]
[334454561,1723113059000,-713.91876938,0.00022,2]
[334454562,1723113059009,-10635.76668414,0.00022,7]
[334454563,1723113059018,-773.59,0.000223,14]
[334454564,1723113059028,-501.89798647,0.00022304,2]
[334454565,1723113059038,-1000.0,0.00022466,2]
[334454566,1723113059047,-150.0,0.00022495,2]
[334454567,1723113059057,-11497.0,0.000225,3]
[334454568,1723113059068,-201.0,0.0002252,2]
[334454569,1723113059077,-197.22,0.00022734,5]
[334454570,1723113059087,-158.894421,0.00022976,2]
[334454571,1723113059097,-200.0,0.00023,2]
[334454572,1723113059107,-150.0,0.00023071,2]
[334454573,1723113059117,-11497.0,0.000231,5]
[334454574,1723113059127,-180.0,0.00023205,2]
[334454575,1723113059136,-424814.52849468,0.000234,2]
[334454576,1723113059151,-344475.0874631,0.000234,2]
[334454577,1723113059162,-147090.62121909,0.000234,2]
[334454578,1723113059211,-155.25204791,0.00011161,2]
[334454579,1723113059221,-151.0,0.00011186,2]
[334454580,1723113059236,-171.394083,0.00011896,2]
[334454581,1723113059246,-222.11267145,0.00020233,2]
[334454582,1723113059257,-93.85128281,0.00020233,2]
[334454583,1723113059267,-5654.44871719,0.000234,2]
[334454584,1723113059341,-151.0,0.00011896,2]
[334454585,1723113059350,-171.394083,0.00012539,2]
[334454586,1723113059360,-200.0,0.00012573,2]
[334454587,1723113059369,-400.0,0.00013942,2]
[334454588,1723113059379,-1075.0,0.00018947,2]
[334454589,1723113059388,-150.0,0.0001896,2]
[334454590,1723113059397,-250.0,0.00019645,2]
[334454591,1723113059407,-350.0,0.0002033,2]
[334454592,1723113059417,-342.85963547,0.00021015,2]
[334454593,1723113059427,-69429.1762109,0.000234,2]
[334454594,1723113060603,1068.31,8.854e-05,2]
[334454596,1723113124623,227.69229236,8.854e-05,2]
[334454597,1723113125929,1268.38387018,8.854e-05,2]
[334454598,1723113131388,411.77126186,8.854e-05,2]
[334454599,1723113132523,1310.96114414,8.854e-05,2]
[334454600,1723113149258,871.90912739,8.854e-05,2]
[334454601,1723113158396,591.86630365,8.854e-05,2]
[334454602,1723113171049,790.7530928,8.854e-05,2]
[334454603,1723113220935,227.69229236,8.854e-05,2]
[334454604,1723113301135,227.69229236,8.854e-05,2]
[334454606,1723113398138,227.69229236,8.854e-05,2]
[334454608,1723113486772,227.69229236,8.854e-05,2]
[334454609,1723113594056,2000.0,0.00027,120]
[334454610,1723113595670,227.69229236,8.854e-05,2]
[334454611,1723113610645,227.69229236,8.854e-05,2]
[334454612,1723113736658,227.69229236,8.854e-05,2]
[334454613,1723113751650,227.69229236,8.854e-05,2]
[334454614,1723113862665,227.69229236,8.854e-05,2]
[334454615,1723113925182,308.33706045,0.00025,90]
[334454616,1723113948775,227.69229236,8.854e-05,2]
[334454617,1723113978675,227.69229236,8.854e-05,2]
[334454618,1723114016699,1048.3,9.493e-05,2]
[334454619,1723114044687,308.33706045,0.00025,90]
[334454621,1723114096675,227.69229236,9.493e-05,2]
[334454623,1723114196691,227.69229236,9.493e-05,2]
[334454624,1723114201257,2000.0,0.00027,120]
[334454626,1723114231725,-300.0,0.00010731,2]
[334454627,1723114231735,-186.61826601,0.00010732,2]
[334454628,1723114231824,-466.57611177,0.00010732,2]
[334454629,1723114231835,-1162.48888932,0.00010732,2]
[334454630,1723114231848,-1917.61535924,0.00010732,2]
[334454631,1723114231858,-1977.01062719,0.00010732,2]
[334454632,1723114231867,-719.48837408,0.00010732,2]
[334454633,1723114231877,-209.20445888,0.00010732,2]
[334454634,1723114231889,-826.32428039,0.00010732,2]
[334454635,1723114231923,-1235.66988396,0.00010732,2]
[334454636,1723114231935,-3798.3477175,0.00010732,2]
[334454637,1723114231946,-1881.40812481,0.00010732,2]
[334454638,1723114231958,-1949.64877668,0.00010732,2]
[334454639,1723114231968,-2835.14286804,0.00010732,2]
[334454640,1723114231978,-155.15237423,0.00010732,2]
[334454641,1723114231987,-928.8949094,0.00010732,2]
[334454642,1723114231999,-209.4019522,0.00010732,2]
[334454643,1723114232010,-649.64235225,0.00010732,2]
[334454644,1723114232020,-5400.26662389,0.00010732,2]
[334454645,1723114232030,-2144.55225728,0.00010732,2]
[334454646,1723114232039,-143.43056053,0.00010732,2]
[334454647,1723114232052,-11.65928471,0.00010732,2]
[334454648,1723114232061,-551.45058206,0.00010732,2]
[334454651,1723114237981,-1165.26374629,0.00010732,2]
[334454857,1723114240959,-1233.06545678,0.00010732,2]
[334454858,1723114240971,-287.95,0.00010732,2]
[334454859,1723114240985,-165.54171834,0.00010732,2]
[334454860,1723114240994,-7000.0,0.00010732,2]
[334454861,1723114241004,-1274.71191122,0.00010732,2]
[334454862,1723114241014,-963.1108135,0.00010732,2]
[334454863,1723114241023,-493.95525933,0.00010732,2]
[334454864,1723114241032,-347.903206,0.00010732,2]
[334454865,1723114241042,-2839.20018913,0.00010732,2]
[334454866,1723114241051,-628.2235327,0.00010732,2]
[334454867,1723114241061,-306.69149948,0.00010732,2]
[334454868,1723114241071,-5147.8088703,0.00010732,2]
[334454869,1723114241095,-5379.75954079,0.00010732,2]
[334454870,1723114241104,-526.47473797,0.00010732,2]
[334454871,1723114241113,-357.21411354,0.00010732,2]
[334454872,1723114241123,-155.0,0.00010732,2]
[334454873,1723114241132,-314.49318533,0.00010959,2]
[334454874,1723114241143,-150.0,0.00011,2]
[334454876,1723114241152,-966.65,0.00011041,2]
[334454877,1723114241161,-239.44,0.0001106,2]
[334454878,1723114241171,-156.87235533,0.00011105,2]
[334454879,1723114241184,-328.13481504,0.00011105,2]
[334454881,1723114241193,-155.0,0.00011105,2]
[334454883,1723114241203,-203.09544618,0.00011105,2]
[334454885,1723114241212,-401.21163842,0.00011105,2]
[334454886,1723114241222,-155.11243956,0.00011105,2]
[334454887,1723114241232,-155.10948341,0.00011105,2]
[334454888,1723114241241,-454.42959721,0.00011105,2]
[334454889,1723114241251,-155.0,0.00011105,2]
[334454890,1723114241260,-17788.57987618,0.00011105,2]
[334454891,1723114241270,-155.0,0.00011105,2]
[334454892,1723114241279,-238462.83087178,0.0001116,2]
[334454893,1723114241289,-3977.12279565,0.00011205,2]
[334454894,1723114241299,-192.05698908,0.00011206,2]
[334454895,1723114241308,-3118.77696529,0.00011206,2]
[334454896,1723114241318,-3031.36676467,0.00011206,2]
[334454897,1723114241327,-250.0,0.0001127,2]
[334454898,1723114241337,-249.138841,0.00011324,2]
[334454899,1723114241347,-900.96,0.00011328,2]
[334454900,1723114241357,-1000.0,0.00011328,2]
[334454901,1723114241366,-805.16,0.00011388,2]
[334454902,1723114241376,-724.45,0.00011389,2]
[334454903,1723114241385,-344.55,0.00011435,2]
[334454904,1723114241395,-500.0,0.00011503,2]
[334454905,1723114241404,-210.97718399,0.00011503,2]
[334454906,1723114241414,-500.0,0.00011503,2]
[334454907,1723114241423,-10000.0,0.00011504,2]
[334454908,1723114241435,-422.47,0.00011581,2]
[334454909,1723114241445,-200.0,0.00011631,2]
[334454910,1723114241455,-250.0,0.00011638,2]
[334454911,1723114241465,-1048.3,0.00011756,2]
[334454912,1723114241476,-1184.61576788,0.0001185,2]
[334454913,1723114241486,-185.86844577,0.00011896,2]
[334454914,1723114241495,-1297.4115987,0.00011896,2]
[334454915,1723114241505,-1500.0,0.00011959,2]
[334454916,1723114241515,-17643.91300911,0.00012297,2]
[334454917,1723114241524,-5000.0,0.0001236,2]
[334454918,1723114241534,-1738.98059471,0.0001236,2]
[334454919,1723114241544,-1176.55374335,0.0001236,2]
[334454920,1723114241554,-532.10407555,0.00012397,2]
[334454921,1723114241563,-1073.93004977,0.00012397,2]
[334454922,1723114241573,-600.54620621,0.00012397,2]
[334454923,1723114241583,-367.62833061,0.0001246,2]
[334454924,1723114241595,-218.8411364,0.0001246,2]
[334454925,1723114241605,-155.0,0.0001246,2]
[334454926,1723114241614,-203.27618763,0.0001246,2]
[334454927,1723114241622,-286.92459234,0.0001246,2]
[334454928,1723114241632,-155.20799983,0.0001246,2]
[334454929,1723114241641,-155.10132533,0.0001246,2]
[334454930,1723114241651,-155.0406408,0.0001246,2]
[334454931,1723114241662,-313.5141121,0.0001246,2]
[334454932,1723114241675,-227.31243139,0.0001254,2]
[334454933,1723114241685,-484.87667876,0.0001254,2]
[334454934,1723114241694,-155.07135124,0.0001254,2]
[334454935,1723114241704,-155.0,0.0001254,2]
[334454936,1723114241713,-155.0,0.0001254,2]
[334454937,1723114241722,-160.69414694,0.0001254,2]
[334454938,1723114241732,-159.55488269,0.0001254,2]
[334454939,1723114241742,-155.0,0.0001254,2]
[334454940,1723114241752,-248.33722146,0.0001254,2]
[334454941,1723114241762,-297.28259433,0.0001254,2]
[334454942,1723114241771,-528.59594259,0.0001254,2]
[334454943,1723114241781,-155.0,0.0001254,2]
[334454944,1723114241791,-520.5164044,0.0001254,2]
[334454945,1723114241800,-165.40211369,0.00012581,2]
[334454946,1723114241810,-155.34704631,0.00012581,2]
[334454947,1723114241820,-155.0,0.00012581,2]
[334454948,1723114241829,-161.3917869,0.00012581,2]
[334454949,1723114241839,-439.80013172,0.00012581,2]
[334454950,1723114241848,-155.13443294,0.00012581,2]
[334454951,1723114241858,-155.0,0.00012581,2]
[334454952,1723114241867,-155.33331372,0.00012581,2]
[334454953,1723114241877,-270.38105378,0.00012581,2]
[334454954,1723114241887,-205.77767848,0.00012581,2]
[334454955,1723114241896,-196.99194393,0.00012581,2]
[334454956,1723114241907,-200.0,0.00012581,2]
[334454957,1723114241917,-206.70151883,0.00012581,2]
[334454959,1723114241926,-303.95332576,0.00012581,2]
[334454960,1723114241936,-380.08797453,0.00012581,2]
[334454962,1723114241946,-164.28041827,0.00012613,2]
[334454964,1723114241955,-155.21959602,0.00012613,2]
[334454966,1723114241965,-236.18034557,0.00012613,2]
[334454968,1723114241974,-330.00437628,0.00012613,2]
[334454970,1723114241984,-155.0,0.00012613,2]
[334454972,1723114241993,-400.0,0.00012613,2]
[334454974,1723114242003,-155.0,0.00012613,2]
[334454976,1723114242013,-309.073325,0.00012665,2]
[334454978,1723114242023,-363.92920958,0.00012665,2]
[334454980,1723114242032,-155.08831328,0.00012665,2]
[334454981,1723114242041,-164.35026162,0.00012665,2]
[334454983,1723114242051,-686.78056419,0.00012665,2]
[334454985,1723114242060,-164.35026162,0.00012665,2]
[334454987,1723114242070,-265.34834618,0.00012666,2]
[334454988,1723114242079,-476.64458487,0.00012666,2]
[334454989,1723114242088,-265.34834618,0.00012666,2]
[334454990,1723114242098,-789.57133795,0.00012681,2]
[334454991,1723114242107,-158.94847056,0.00012681,2]
[334454992,1723114242116,-365.64094025,0.0001269,2]
[334454993,1723114242125,-155.0,0.00012696,2]
[334454994,1723114242135,-1000.0,0.00012744,2]
[334454995,1723114242145,-155.0,0.00012749,2]
[334454996,1723114242154,-7169.66979409,0.00013,2]
[334454997,1723114242167,-2951.7197915,0.00013,2]
[334455012,1723114243572,-723.15324613,0.0001236,2]
[334455013,1723114243582,-2341.05923349,0.00012391,2]
[334455014,1723114243593,-298.4528479,0.00012391,2]
[334455015,1723114243605,-155.0,0.0001246,2]
[334455016,1723114243616,-155.0,0.0001246,2]
[334455017,1723114243626,-459.8606261,0.0001254,2]
[334455018,1723114243636,-255.04998077,0.00012581,2]
[334455019,1723114243647,-155.0,0.00012613,2]
[334455020,1723114243657,-210.98862759,0.00012665,2]
[334455021,1723114243666,-9778.61041441,0.00013,2]
[334455022,1723114243679,-400.0,0.00013248,2]
[334455023,1723114243689,-162.65072108,0.00013283,2]
[334455024,1723114243699,-449.9084774,0.00013283,2]
[334455025,1723114243708,-315.96395426,0.00013599,2]
[334455026,1723114243717,-17643.91300907,0.00013697,2]
[334455027,1723114243727,-500.0,0.00013699,2]
[334455028,1723114243736,-200.0,0.00013699,2]
[334455029,1723114243745,-174.13,0.00013699,2]
[334455030,1723114243755,-2751.0,0.00013699,2]
[334455031,1723114243765,-35389.68879117,0.000138,3]
[334455032,1723114245873,-227.69229236,0.00011506,2]
[334455033,1723114245883,-1176.55374335,0.00011959,2]
[334455034,1723114245892,-4624.35866589,0.000138,3]
[334455035,1723114245903,-626.08111507,0.000138,3]
[334455036,1723114245945,-521.50147713,0.00012666,2]
[334455037,1723114245956,-268.06986082,0.00012666,2]
[334455038,1723114245966,-2412.23203474,0.000138,3]
[334455039,1723114246020,-493.70431179,0.000138,3]
[334455040,1723114246033,-415.0,0.000138,3]
[334455041,1723114246083,-2133.07562019,0.000138,3]
[334455046,1723114297821,237.32788932,0.00025,90]
[334455047,1723114394573,1000.0,0.00026849,120]
[334455048,1723114395028,1000.0,0.00026849,120]
[334455049,1723114400841,500.0,0.00026062,120]
[334455050,1723114410657,200.0,0.00026273,120]
[334455058,1723114907652,1035.0,0.00027,120]
[334455059,1723114994612,1000.0,0.00026849,120]
[334455060,1723115000602,500.0,0.00026459,120]
[334455061,1723115009607,200.0,0.00026673,120]
[334455062,1723115069485,200.0,0.00025598,120]
[334455076,1723115309746,2000.0,0.0001355,50]
[334455128,1723115438239,-150.0,0.00011,2]
[334455129,1723115438249,-300.0,0.00011104,2]
[334455130,1723115438258,-94.01346895,0.00011105,2]
[334455131,1723115438359,-2077.87520853,0.00011105,2]
[334455139,1723115440443,-859.47808719,0.00011105,2]
[334455141,1723115440453,-155.0,0.00011105,2]
[334455142,1723115440462,-157.43743237,0.00011105,2]
[334455143,1723115440471,-158.94847056,0.00011105,2]
[334455144,1723115440481,-789.57133795,0.00011105,2]
[334455145,1723115440490,-2885.50372193,0.00011959,2]
[334455261,1723115443709,-32830.3463791,0.00011959,2]
[334455262,1723115443718,-4003.8534,0.0001236,2]
[334455263,1723115443727,-150.0,0.0001258,2]
[334455264,1723115443736,-407.85618641,0.00013435,2]
[334455265,1723115443745,-9900.60324222,0.0001351,2]
[334455266,1723115443754,-9267.85011549,0.0001351,2]
[334455267,1723115443763,-201.41565925,0.0001355,2]
[334455268,1723115443772,-162.65072108,0.0001355,2]